fUSD/lending_fUSD_20240404
["ID","MTS","AMOUNT","RATE_DAILY","PERIOD"]
[321494072,1712241040209,-4508.2,0.000438,4]
[321494073,1712241040220,-4508.2,0.000438,4]
[321494074,1712241040230,-4508.2,0.000438,4]
[321494075,1712241040240,-352.88,0.00043836,2]
[321494076,1712241040251,-14318.0095112,0.00044,60]
[321494077,1712241040261,-204.16519929,0.00044065,30]
[321494078,1712241040272,-173.94204917,0.00044089,30]
[321494079,1712241040282,-154.06850799,0.00044154,30]
[321494080,1712241040292,-204.16519929,0.00044162,30]
[321494081,1712241040303,-155.51901077,0.00044165,30]
[321494082,1712241040313,-204.16519929,0.00044179,30]
[321494083,1712241040324,-152.40874845,0.00044181,30]
[321494084,1712241040334,-173.94204917,0.00044221,30]
[321494085,1712241040344,-204.16519929,0.00044234,30]
[321494086,1712241040354,-152.40874845,0.00044297,30]
[321494087,1712241040364,-152.26944911,0.00044304,30]
[321494088,1712241040374,-152.26944911,0.00044387,30]
[321494089,1712241040384,-150.96,0.000444,2]
[321494090,1712241040395,-3991.0,0.0004441,30]
[321494091,1712241040405,-154.00962217,0.00044424,30]
[321494092,1712241040416,-1003.54,0.0004445,2]
[321494093,1712241040426,-151.0,0.00044473,6]
[321494094,1712241040440,-150.5109859,0.00044481,30]
[321494095,1712241040450,-152.26944911,0.0004449,30]
[321494096,1712241040461,-173.94204917,0.00044494,30]
[321494097,1712241040471,-173.94204917,0.00044588,30]
[321494098,1712241040481,-171.7037562,0.00044589,30]
[321494099,1712241040491,-204.16519929,0.00044613,30]
[321494100,1712241040501,-173.94204917,0.00044616,30]
[321494101,1712241040512,-309.38,0.00044645,2]
[321494102,1712241040522,-153.82631398,0.0004469,30]
[321494103,1712241040532,-171.7037562,0.00044694,30]
[321494104,1712241040542,-153.82631398,0.00044811,30]
[321494105,1712241040553,-155.0884846,0.00044875,30]
[321494106,1712241040564,-871.34353157,0.0004489,10]
[321494107,1712241040574,-150.5109859,0.00044937,30]
[321494108,1712241040584,-156.91958371,0.00044943,30]
[321494109,1712241040595,-1329.50366683,0.00044956,2]
[321494110,1712241040606,-204.16519929,0.00044982,30]
[321494111,1712241040616,-5000.0,0.00044986,4]
[321494112,1712241040627,-328.47719203,0.00045,4]
[321494113,1712241040637,-1000.0,0.00045,120]
[321494114,1712241040648,-510.350444,0.00045,120]
[321494115,1712241040658,-704.46813212,0.00045,30]
[321494116,1712241040669,-664.0,0.00045,120]
[321494117,1712241040679,-204.16519929,0.00045003,30]
[321494118,1712241040692,-204.16519929,0.0004503,30]
[321494119,1712241040702,-204.16519929,0.00045117,30]
[321494120,1712241040712,-173.94204917,0.00045126,30]
[321494121,1712241040722,-173.94204917,0.00045142,30]
[321494122,1712241040733,-171.7037562,0.0004522,30]
[321494123,1712241040743,-152.26944911,0.00045233,30]
[321494124,1712241040753,-158.94982111,0.00045285,30]
[321494125,1712241040763,-574.34000438,0.00045291,2]
[321494126,1712241040773,-1003.54,0.0004532,2]
[321494127,1712241040783,-176.19582858,0.00045369,30]
[321494128,1712241040793,-150.04168176,0.00045469,30]
[321494130,1712241041097,-150.5109859,0.00045486,30]
[321494131,1712241041120,-150.0,0.000455,8]
[321494132,1712241041129,-155.0884846,0.00045509,30]
[321494133,1712241041140,-171.7037562,0.00045708,30]
[321494134,1712241041150,-171.7037562,0.00045726,30]
[321494136,1712241041160,-156.09,0.00045819,2]
[321494138,1712241041169,-3604.0,0.00045829,10]
[321494139,1712241041179,-1123.36,0.00045915,2]
[321494140,1712241041191,-519.43,0.00045921,2]
[321494141,1712241041201,-687.96,0.00045921,2]
[321494142,1712241041211,-150.0,0.00045921,2]
[321494143,1712241041227,-204.16519929,0.00045933,30]
[321494144,1712241041237,-2182273.5693268,0.00045999,21]
[321494145,1712241041247,-200000.0,0.00046,46]
[321494146,1712241041257,-155.0,0.00046,3]
[321494147,1712241041268,-150.0,0.00046,8]
[321494148,1712241041277,-1000.0,0.00046,120]
[321494149,1712241041288,-204.16519929,0.00046024,30]
[321494150,1712241041297,-152.40874845,0.00046056,30]
[321494151,1712241041307,-150.5109859,0.00046098,30]
[321494152,1712241041317,-150.04168176,0.0004615,30]
[321494153,1712241041326,-309.38,0.0004616,2]
[321494154,1712241041336,-171.7037562,0.0004618,30]
[321494155,1712241041347,-1003.54,0.0004619,2]
[321494156,1712241041363,-1111.09,0.00046247,15]
[321494157,1712241041375,-700.0,0.0004629,30]
[321494158,1712241041385,-1300.0,0.0004629,30]
[321494159,1712241041395,-500.0,0.0004629,30]
[321494160,1712241041405,-500.0,0.0004629,30]
[321494161,1712241041415,-500.0,0.0004629,30]
[321494162,1712241041424,-156.91958371,0.00046293,30]
[321494163,1712241041434,-204.16519929,0.00046299,30]
[321494164,1712241041445,-171.7037562,0.00046302,30]
[321494165,1712241041455,-163.19664356,0.00046351,30]
[321494166,1712241041464,-171.7037562,0.00046367,30]
[321494167,1712241041474,-150.04168176,0.00046438,30]
[321494168,1712241041484,-2626.06,0.0004648,120]
[321494169,1712241041494,-420.67747198,0.00046493,60]
[321494170,1712241041504,-150.0,0.000465,8]
[321494171,1712241041513,-700.0,0.00046564,30]
[321494172,1712241041523,-1300.0,0.00046564,30]
[321494173,1712241041533,-1329.50366683,0.00046569,2]
[321494174,1712241041542,-1000.0,0.00046575,30]
[321494175,1712241041552,-2100.0,0.00046594,30]
[321494176,1712241041562,-2305.33942235,0.000466,2]
[321494177,1712241041572,-173.94204917,0.00046604,30]
[321494178,1712241041581,-152.40874845,0.00046625,30]
[321494179,1712241041591,-152.40874845,0.00046677,30]
[321494180,1712241041601,-420.67747198,0.00046685,60]
[321494181,1712241041611,-173.94204917,0.000467,30]
[321494182,1712241041620,-710.0,0.000468,30]
[321494183,1712241041630,-669.0,0.000468,30]
[321494184,1712241041639,-574.34000438,0.0004682,2]
[321494185,1712241041648,-204.16519929,0.00046828,30]
[321494186,1712241041658,-173.94204917,0.00046834,30]
[321494187,1712241041667,-700.0,0.00046838,30]
[321494188,1712241041676,-1300.0,0.00046838,30]
[321494189,1712241041686,-500.0,0.00046838,30]
[321494190,1712241041696,-500.0,0.00046838,30]
[321494191,1712241041706,-500.0,0.00046838,30]
[321494192,1712241041715,-150.04168176,0.00046887,30]
[321494193,1712241041724,-183.1482224,0.000469,2]
[321494194,1712241041734,-420.67747198,0.00046904,60]
[321494195,1712241041743,-173.94204917,0.00046905,30]
[321494196,1712241041753,-150.96,0.00046989,2]
[321494197,1712241041763,-150.96,0.00046989,2]
[321494198,1712241041773,-150.96,0.00046989,2]
[321494199,1712241041782,-150.96,0.00046989,2]
[321494200,1712241041794,-150.96,0.00046989,2]
[321494201,1712241041804,-150.96,0.00046989,2]
[321494202,1712241041813,-150.96,0.00046989,2]
[321494203,1712241041822,-150.96,0.00046989,2]
[321494204,1712241041832,-150.96,0.0004699,2]
[321494205,1712241041842,-200000.0,0.00047,47]
[321494206,1712241041852,-323.05662884,0.00047,2]
[321494207,1712241041861,-1015.0,0.00047,120]
[321494208,1712241041871,-153.02,0.00047,5]
[321494209,1712241041880,-153.02,0.00047,5]
[321494210,1712241041890,-153.02,0.00047,5]
[321494211,1712241041899,-153.02,0.00047,5]
[321494212,1712241041910,-153.02,0.00047,5]
[321494213,1712241041919,-153.02,0.00047,5]
[321494214,1712241041930,-153.02,0.00047,5]
[321494215,1712241041941,-153.02,0.00047,5]
[321494216,1712241041950,-153.02,0.00047,5]
[321494217,1712241041959,-153.02,0.00047,5]
[321494218,1712241041969,-153.02,0.00047,5]
[321494219,1712241041979,-153.02,0.00047,5]
[321494220,1712241041989,-150.0,0.00047,9]
[321494221,1712241041998,-4508.2,0.00047,5]
[321494222,1712241042008,-4508.2,0.00047,5]
[321494223,1712241042020,-4508.2,0.00047,5]
[321494224,1712241042031,-4508.2,0.00047,5]
[321494225,1712241042040,-4508.2,0.00047,5]
[321494226,1712241042049,-4508.2,0.00047,5]
[321494227,1712241042061,-4508.2,0.00047,5]
[321494228,1712241042073,-4508.2,0.00047,5]
[321494229,1712241042083,-4508.2,0.00047,5]
[321494230,1712241042093,-4508.2,0.00047,5]
[321494231,1712241042104,-4508.2,0.00047,5]
[321494232,1712241042113,-4508.2,0.00047,5]
[321494233,1712241042123,-4508.2,0.00047,5]
[321494234,1712241042133,-4508.2,0.00047,5]
[321494235,1712241042143,-4508.2,0.00047,5]
[321494236,1712241042155,-4508.2,0.00047,5]
[321494237,1712241042165,-4508.2,0.00047,5]
[321494238,1712241042175,-4508.2,0.00047,5]
[321494239,1712241042187,-4508.2,0.00047,5]
[321494240,1712241042197,-4508.2,0.00047,5]
[321494241,1712241042208,-272.18,0.00047,7]
[321494242,1712241042218,-196.5,0.00047,7]
[321494243,1712241042230,-166.9,0.00047,7]
[321494244,1712241042240,-1003.54,0.0004706,2]
[321494245,1712241042251,-204.16519929,0.00047075,30]
[321494246,1712241042261,-420.67747198,0.00047096,60]
[321494247,1712241042271,-800.0,0.00047248,25]
[321494248,1712241042281,-420.67747198,0.00047288,60]
[321494249,1712241042292,-559.67106059,0.00047314,4]
[321494250,1712241042302,-368.56258871,0.00047314,2]
[321494251,1712241042312,-862.77814886,0.00047315,60]
[321494252,1712241042322,-1613.45553968,0.00047315,4]
[321494253,1712241042332,-216.9117649,0.00047315,4]
[321494254,1712241042343,-700.0,0.00047386,30]
[321494255,1712241042354,-1300.0,0.00047386,30]
[321494256,1712241042364,-500.0,0.00047386,30]
[321494257,1712241042374,-505.05628314,0.00047386,30]
[321494258,1712241042385,-500.0,0.00047386,30]
[321494259,1712241042395,-204.16519929,0.00047418,30]
[321494260,1712241042404,-519.43,0.00047423,2]
[321494261,1712241042413,-150.0,0.00047423,2]
[321494262,1712241042423,-519.43,0.00047423,2]
[321494263,1712241042432,-150.0,0.00047423,2]
[321494264,1712241042444,-519.43,0.00047423,2]
[321494265,1712241042453,-150.0,0.00047423,2]
[321494266,1712241042463,-519.43,0.00047423,2]
[321494267,1712241042473,-150.0,0.00047423,2]
[321494268,1712241042482,-150.0,0.00047423,2]
[321494269,1712241042492,-150.0,0.00047423,2]
[321494270,1712241042502,-519.43,0.00047423,2]
[321494271,1712241042511,-150.0,0.00047423,2]
[321494272,1712241042521,-150.0,0.00047423,2]
[321494273,1712241042530,-519.43,0.00047423,2]
[321494274,1712241042540,-150.0,0.00047423,2]
[321494275,1712241042549,-519.43,0.00047423,2]
[321494276,1712241042559,-162.42,0.00047423,2]
[321494277,1712241042568,-519.43,0.00047423,2]
[321494278,1712241042578,-152.40874845,0.00047449,30]
[321494279,1712241042588,-420.67747198,0.00047479,60]
[321494281,1712241042597,-2110.0,0.000475,15]
[321494283,1712241042607,-150.0,0.000475,9]
[321494284,1712241042616,-928.0,0.00047529,7]
[321494285,1712241042626,-152.26944911,0.00047553,30]
[321494286,1712241042636,-152.0,0.00047578,3]
[321494287,1712241042646,-156.91958371,0.00047587,30]
[321494288,1712241042657,-394.73,0.00047591,2]
[321494290,1712241042668,-904.92,0.00047591,2]
[321494292,1712241042678,-417.08,0.00047591,2]
[321494294,1712241042687,-150.0,0.00047591,2]
[321494295,1712241042697,-150.0,0.00047591,2]
[321494296,1712241042706,-161.95,0.00047591,2]
[321494297,1712241042716,-150.0,0.00047591,2]
[321494298,1712241042726,-519.43,0.00047591,2]
[321494299,1712241042736,-150.0,0.00047591,2]
[321494300,1712241042745,-519.43,0.00047591,2]
[321494302,1712241042755,-161.95,0.00047591,2]
[321494303,1712241042765,-150.0,0.00047591,2]
[321494304,1712241042774,-348.62,0.00047591,2]
[321494305,1712241042784,-150.0,0.00047591,2]
[321494306,1712241042794,-519.43,0.00047591,2]
[321494307,1712241042803,-161.95,0.00047591,2]
[321494308,1712241042814,-150.0,0.00047591,2]
[321494309,1712241042824,-348.62,0.00047591,2]
[321494310,1712241042834,-150.0,0.00047591,2]
[321494311,1712241042845,-440.35,0.00047591,2]
[321494312,1712241042854,-150.0,0.00047591,2]
[321494313,1712241042864,-519.43,0.00047591,2]
[321494314,1712241042873,-348.62,0.00047591,2]
[321494315,1712241042883,-150.0,0.00047591,2]
[321494316,1712241042893,-417.08,0.00047591,2]
[321494317,1712241042903,-519.43,0.00047591,2]
[321494318,1712241042912,-150.0,0.00047591,2]
[321494319,1712241042922,-417.08,0.00047591,2]
[321494320,1712241042931,-519.43,0.00047591,2]
[321494321,1712241042942,-348.62,0.00047591,2]
[321494322,1712241042951,-150.0,0.00047591,2]
[321494323,1712241042960,-519.43,0.00047591,2]
[321494324,1712241042969,-300.0,0.00047591,2]
[321494325,1712241042979,-348.62,0.00047591,2]
[321494326,1712241042989,-519.43,0.00047591,2]
[321494327,1712241042998,-417.08,0.00047591,2]
[321494328,1712241043008,-150.0,0.00047591,2]
[321494329,1712241043018,-417.08,0.00047591,2]
[321494330,1712241043027,-417.08,0.00047591,2]
[321494331,1712241043037,-348.62,0.00047591,2]
[321494332,1712241043046,-300.0,0.00047591,2]
[321494333,1712241043056,-417.08,0.00047591,2]
[321494334,1712241043070,-348.62,0.00047591,2]
[321494335,1712241043080,-348.62,0.00047591,2]
[321494336,1712241043090,-156.52,0.00047591,2]
[321494337,1712241043099,-304.07,0.00047591,2]
[321494338,1712241043110,-347.38,0.00047591,2]
[321494339,1712241043120,-504.77,0.00047591,2]
[321494340,1712241043129,-415.28,0.00047591,2]
[321494341,1712241043140,-272.18,0.000476,7]
[321494342,1712241043150,-196.5,0.000476,7]
[321494343,1712241043160,-166.9,0.000476,7]
[321494344,1712241043171,-150.0,0.0004762,61]
[321494345,1712241043181,-150.5109859,0.00047626,30]
[321494346,1712241043191,-420.67747198,0.00047671,60]
[321494347,1712241043201,-309.38,0.00047675,2]
[321494348,1712241043210,-173.94204917,0.00047739,30]
[321494349,1712241043220,-156.25,0.0004775,2]
[321494350,1712241043229,-171.7037562,0.00047753,30]
[321494351,1712241043239,-150.5109859,0.00047833,30]
[321494352,1712241043249,-155.1688992,0.00047845,2]
[321494353,1712241043258,-173.94204917,0.00047863,30]
[321494354,1712241043268,-420.67747198,0.00047863,60]
[321494355,1712241043278,-155.51901077,0.00047876,30]
[321494356,1712241043288,-500.0,0.000479,7]
[321494357,1712241043297,-1003.54,0.0004793,2]
[321494358,1712241043307,-700.0,0.00047934,30]
[321494359,1712241043316,-1300.0,0.00047934,30]
[321494360,1712241043326,-500.0,0.00047934,30]
[321494361,1712241043337,-500.0,0.00047934,30]
[321494362,1712241043346,-155.0,0.00047943,4]
[321494363,1712241043356,-155.67095295,0.00047943,4]
[321494364,1712241043366,-155.0,0.00047943,4]
[321494365,1712241043375,-155.0,0.00047943,4]
[321494367,1712241043384,-300.6784826,0.00047943,4]
[321494368,1712241043394,-156.56179884,0.00047943,4]
[321494369,1712241043403,-160.71324978,0.00047943,4]
[321494370,1712241043413,-341.32563928,0.00047943,4]
[321494371,1712241043422,-206.2137969,0.00047944,4]
[321494372,1712241043432,-171.77759115,0.00047944,4]
[321494373,1712241043441,-11425.99915394,0.00047944,4]
[321494374,1712241043452,-5985.45,0.00047945,8]
[321494375,1712241043462,-5985.45,0.00047945,8]
[321494376,1712241043474,-5985.45,0.00047945,8]
[321494377,1712241043483,-5985.45,0.00047945,8]
[321494378,1712241043492,-5985.45,0.00047945,8]
[321494379,1712241043502,-5985.45,0.00047945,8]
[321494380,1712241043511,-5985.45,0.00047945,8]
[321494381,1712241043521,-5985.45,0.00047945,8]
[321494382,1712241043530,-5985.45,0.00047945,8]
[321494383,1712241043539,-5985.45,0.00047945,8]
[321494384,1712241043549,-5985.45,0.00047945,8]
[321494385,1712241043559,-5985.45,0.00047945,8]
[321494386,1712241043568,-5985.45,0.00047945,8]
[321494387,1712241043578,-5985.45,0.00047945,8]
[321494388,1712241043588,-5985.45,0.00047945,8]
[321494389,1712241043597,-5985.45,0.00047945,8]
[321494391,1712241043606,-5985.45,0.00047945,8]
[321494392,1712241043616,-5985.45,0.00047945,8]
[321494393,1712241043625,-5985.45,0.00047945,8]
[321494394,1712241043635,-5985.45,0.00047945,8]
[321494395,1712241043645,-5985.45,0.00047945,8]
[321494396,1712241043655,-5985.45,0.00047945,8]
[321494397,1712241043665,-5985.45,0.00047945,8]
[321494398,1712241043675,-5985.62490235,0.00047945,8]
[321494399,1712241043685,-11878.92,0.00047945,8]
[321494400,1712241043695,-11878.92,0.00047945,8]
[321494401,1712241043705,-11878.92,0.00047945,8]
[321494402,1712241043714,-11878.92,0.00047945,8]
[321494403,1712241043724,-11878.92,0.00047945,8]
[321494404,1712241043733,-11878.92,0.00047945,8]
[321494405,1712241043742,-11878.92,0.00047945,8]
[321494406,1712241043751,-352.88,0.00047945,2]
[321494407,1712241043761,-204.16519929,0.00047963,30]
[321494408,1712241043770,-150.5109859,0.00047986,30]
[321494409,1712241043779,-11878.92,0.00047999,8]
[321494410,1712241043789,-200000.0,0.00048,48]
[321494411,1712241043799,-151.0,0.00048,120]
[321494412,1712241043809,-2110.0,0.00048,15]
[321494413,1712241043818,-392.369205,0.00048,25]
[321494414,1712241043827,-150.0,0.00048,9]
[321494415,1712241043836,-181.0,0.00048,90]
[321494416,1712241043845,-155.0884846,0.00048015,30]
[321494417,1712241043854,-152.40874845,0.00048046,30]
[321494418,1712241043864,-154.06850799,0.00048066,30]
[321494419,1712241043873,-420.67747198,0.00048082,60]
[321494420,1712241043882,-272.18,0.000481,7]
[321494421,1712241043892,-196.5,0.000481,7]
[321494422,1712241043901,-166.9,0.000481,7]
[321494423,1712241043911,-151.16400735,0.00048169,30]
[321494424,1712241043921,-1123.36,0.00048178,2]
[321494425,1712241043930,-1329.50366683,0.00048181,2]
[321494426,1712241043941,-602.03,0.00048218,120]
[321494427,1712241043950,-420.67747198,0.00048274,60]
[321494428,1712241043962,-150.5109859,0.00048296,30]
[321494429,1712241043974,-159.12958476,0.00048333,30]
[321494430,1712241043987,-574.34000438,0.00048348,2]
[321494431,1712241044000,-156.09,0.00048394,2]
[321494432,1712241044011,-420.67747198,0.00048466,60]
[321494433,1712241044022,-152.40874845,0.00048467,30]
[321494434,1712241044035,-700.0,0.00048482,30]
[321494435,1712241044047,-1300.0,0.00048482,30]
[321494436,1712241044060,-500.0,0.00048482,30]
[321494437,1712241044073,-500.0,0.00048482,30]
[321494438,1712241044089,-2110.0,0.000485,15]
[321494439,1712241044102,-150.0,0.000485,9]
[321494440,1712241044114,-1000.0,0.00048539,2]
[321494441,1712241044125,-152.40874845,0.00048544,30]
[321494442,1712241044138,-171.7037562,0.00048564,30]
[321494443,1712241044152,-155.51901077,0.00048571,30]
[321494444,1712241044164,-272.18,0.000486,7]
[321494445,1712241044176,-196.5,0.000486,7]
[321494446,1712241044190,-166.9,0.000486,7]
[321494447,1712241044202,-155.01816656,0.00048657,30]
[321494448,1712241044213,-420.67747198,0.00048658,60]
[321494449,1712241044225,-151.0,0.00048685,120]
[321494450,1712241044240,-171.7037562,0.00048697,30]
[321494451,1712241044252,-173.94204917,0.00048699,30]
[321494452,1712241044266,-1455.0,0.000487,117]
[321494453,1712241044278,-173.94204917,0.00048719,30]
[321494454,1712241044292,-150.04168176,0.00048736,30]
[321494455,1712241044304,-1000.0,0.0004878,23]
[321494456,1712241044318,-2600.9806,0.000488,60]
[321494457,1712241044332,-2399.0194,0.000488,48]
[321494458,1712241044345,-1003.54,0.000488,2]
[321494459,1712241044358,-1000.0,0.000488,23]
[321494460,1712241044371,-155.51901077,0.00048811,30]
[321494461,1712241044384,-204.16519929,0.00048819,30]
[321494462,1712241044396,-159.12958476,0.00048819,30]
[321494463,1712241044406,-1000.0,0.0004882,23]
[321494464,1712241044416,-1000.0,0.0004884,23]
[321494465,1712241044426,-1175.393457,0.0004884,23]
[321494466,1712241044439,-420.67747198,0.00048849,60]
[321494467,1712241044451,-1000.0,0.0004886,23]
[321494468,1712241044461,-1000.0,0.0004886,23]
[321494469,1712241044474,-502.80356341,0.0004887,3]
[321494470,1712241044486,-183.14822239,0.00048879,2]
[321494471,1712241044499,-1000.0,0.0004888,23]
[321494472,1712241044511,-1000.0,0.0004888,23]
[321494473,1712241044522,-150.0,0.000489,26]
[321494474,1712241044534,-1000.0,0.000489,23]
[321494475,1712241044546,-1000.0,0.000489,23]
[321494476,1712241044557,-171.7037562,0.00048909,30]
[321494477,1712241044569,-152.40874845,0.00048932,30]
[321494478,1712241044582,-173.94204917,0.0004895,30]
[321494479,1712241044594,-159.12958476,0.00048971,30]
[321494480,1712241044605,-1111.09,0.00048986,15]
[321494481,1712241044616,-1994.82258845,0.00048997,2]
[321494482,1712241044628,-11878.92,0.00048999,8]
[321494483,1712241044639,-200000.0,0.00049,49]
[321494484,1712241044651,-30088.0,0.00049,2]
[321494485,1712241044662,-2110.0,0.00049,15]
[321494486,1712241044674,-500.0,0.00049,7]
[321494487,1712241044686,-500.0,0.00049,7]
[321494488,1712241044697,-500.0,0.00049,7]
[321494489,1712241044708,-500.0,0.00049,7]
[321494490,1712241044719,-500.0,0.00049,7]
[321494491,1712241044736,-500.0,0.00049,7]
[321494492,1712241044747,-500.0,0.00049,7]
[321494493,1712241044758,-500.0,0.00049,7]
[321494494,1712241044769,-500.0,0.00049,7]
[321494495,1712241044781,-500.0,0.00049,7]
[321494496,1712241044792,-500.0,0.00049,7]
[321494497,1712241044804,-500.0,0.00049,7]
[321494498,1712241044816,-1500.0,0.00049,120]
[321494499,1712241044828,-500.0,0.00049,7]
[321494500,1712241044839,-500.0,0.00049,7]
[321494501,1712241044850,-500.0,0.00049,7]
[321494502,1712241044862,-500.0,0.00049,7]
[321494503,1712241044873,-500.0,0.00049,7]
[321494504,1712241044884,-500.0,0.00049,7]
[321494505,1712241044896,-500.0,0.00049,7]
[321494506,1712241044909,-500.0,0.00049,7]
[321494507,1712241044922,-500.0,0.00049,7]
[321494508,1712241044934,-500.0,0.00049,7]
[321494509,1712241044948,-500.0,0.00049,7]
[321494510,1712241044961,-500.0,0.00049,7]
[321494511,1712241044972,-500.0,0.00049,7]
[321494512,1712241044983,-500.0,0.00049,7]
[321494513,1712241044995,-500.0,0.00049,7]
[321494514,1712241045006,-500.0,0.00049,7]
[321494515,1712241045016,-500.0,0.00049,7]
[321494516,1712241045028,-500.0,0.00049,7]
[321494517,1712241045038,-500.0,0.00049,7]
[321494518,1712241045049,-500.0,0.00049,7]
[321494519,1712241045061,-500.0,0.00049,7]
[321494520,1712241045072,-500.0,0.00049,7]
[321494521,1712241045088,-500.0,0.00049,7]
[321494522,1712241045098,-500.0,0.00049,7]
[321494523,1712241045111,-500.0,0.00049,7]
[321494524,1712241045121,-500.0,0.00049,7]
[321494525,1712241045133,-500.0,0.00049,7]
[321494526,1712241045144,-500.0,0.00049,7]
[321494527,1712241045155,-500.0,0.00049,7]
[321494528,1712241045166,-500.0,0.00049,7]
[321494529,1712241045177,-500.0,0.00049,7]
[321494530,1712241045189,-500.0,0.00049,7]
[321494531,1712241045200,-500.0,0.00049,7]
[321494532,1712241045211,-500.0,0.00049,7]
[321494533,1712241045222,-500.0,0.00049,7]
[321494534,1712241045233,-500.0,0.00049,7]
[321494535,1712241045244,-500.0,0.00049,7]
[321494536,1712241045255,-500.0,0.00049,7]
[321494537,1712241045267,-500.0,0.00049,7]
[321494538,1712241045278,-500.0,0.00049,7]
[321494539,1712241045289,-500.0,0.00049,7]
[321494540,1712241045300,-500.0,0.00049,7]
[321494541,1712241045311,-500.0,0.00049,7]
[321494542,1712241045322,-500.0,0.00049,7]
[321494543,1712241045333,-500.0,0.00049,7]
[321494544,1712241045344,-500.0,0.00049,7]
[321494545,1712241045354,-500.0,0.00049,7]
[321494546,1712241045366,-500.0,0.00049,7]
[321494547,1712241045377,-500.0,0.00049,7]
[321494548,1712241045389,-307.96,0.00049,7]
[321494549,1712241045400,-469.49,0.00049,7]
[321494550,1712241045412,-500.0,0.00049,7]
[321494551,1712241045423,-150.0,0.00049,9]
[321494552,1712241045434,-11878.92,0.00049003,8]
[321494553,1712241045449,-81329.14775353,0.00049004,120]
[321494554,1712241045472,-17401.5583362,0.00049004,120]
[321494556,1712241045485,-3524.79836481,0.00049004,120]
[321494558,1712241045500,-477.46048853,0.00049004,120]
[321494560,1712241045519,-5012.59931015,0.00049004,120]
[321494561,1712241045551,-35500.81721359,0.00049004,120]
[321494562,1712241045563,-700.0,0.0004903,30]
[321494563,1712241045574,-1300.0,0.0004903,30]
[321494564,1712241045586,-500.0,0.0004903,30]
[321494566,1712241045597,-420.67747198,0.00049041,60]
[321494567,1712241045608,-155.18159834,0.00049044,4]
[321494568,1712241045619,-155.0,0.00049044,4]
[321494569,1712241045631,-188.80872208,0.00049045,4]
[321494570,1712241045642,-265.68120969,0.00049045,4]
[321494571,1712241045653,-2168.36692202,0.00049045,4]
[321494572,1712241045664,-2376.74529774,0.00049045,4]
[321494573,1712241045675,-230.11483414,0.00049046,4]
[321494574,1712241045686,-396.72256604,0.00049046,4]
[321494575,1712241045698,-299.43396558,0.00049046,2]
[321494576,1712241045708,-155.0,0.00049046,4]
[321494577,1712241045719,-155.0,0.00049046,4]
[321494578,1712241045731,-446.80587102,0.00049046,4]
[321494579,1712241045742,-155.0,0.00049046,4]
[321494580,1712241045754,-276.74499683,0.00049046,4]
[321494581,1712241045765,-1638.99138464,0.00049047,4]
[321494582,1712241045778,-235.97176893,0.00049047,4]
[321494583,1712241045792,-173.94204917,0.00049065,30]
[321494584,1712241045803,-150.0,0.00049082,7]
[321494585,1712241045815,-272.18,0.000491,7]
[321494586,1712241045826,-196.5,0.000491,7]